Workbook

Sheet Employee Vacation Tracker
B1: EMPLOYEE VACATION TRACKER TEMPLATE
B2: COMPANY NAME | I2: EMPLOYEE NAME
B4: PAY PERIOD START DATE | C4: # OF DAYS IN PAY PERIOD | F4: HOURS ACCRUED PER PAY PERIOD
F5: VACATION | G5: SICK | H5: PERSONAL
B6: 2018-01-07 | C6: 14 | F6: 0.38 | G6: 0.27 | H6: 0.19
B8: PAY PERIOD END DATE | C8: HOURS USED PER PAY PERIOD | F8: HOURS ACCRUED PER PAY PERIOD | I8: CUMULATIVE HOURS ACCRUED | L8: HOURS AVAILABLE
C9: VACATION | D9: SICK | E9: PERSONAL | F9: VACATION | G9: SICK | H9: PERSONAL | I9: VACATION | J9: SICK | K9: PERSONAL | L9: VACATION | M9: SICK | N9: PERSONAL
B10: =B6+C6-1 -> 2018-01-20 | F10: =F6 -> 0.38 | G10: =G6 -> 0.27 | H10: =H6 -> 0.19 | I10: =F10 -> 0.38 | J10: =G10 -> 0.27 | K10: =H10 -> 0.19 | L10: =I10-C10 -> 0.38 | M10: 0.27 | N10: 0.19
B11: =B10+C6 -> 2018-02-03 | F11: =F6 -> 0.38 | G11: =G6 -> 0.27 | H11: =H6 -> 0.19 | I11: =I10+F11 -> 0.76 | J11: =J10+G11 -> 0.54 | K11: =K10+H11 -> 0.38 | L11: 0.76 | M11: 0.54 | N11: 0.38
B12: =B11+C6 -> 2018-02-17 | F12: =F6 -> 0.38 | G12: =G6 -> 0.27 | H12: =H6 -> 0.19 | I12: =I11+F12 -> 1.14 | J12: =J11+G12 -> 0.81 | K12: =K11+H12 -> 0.57 | L12: =I12-C12 -> 1.14 | M12: =J12-D12 -> 0.81 | N12: =K12-E12 -> 0.57
B13: =B12+C6 -> 2018-03-03 | F13: =F6 -> 0.38 | G13: =G6 -> 0.27 | H13: =H6 -> 0.19 | I13: 1.52 | J13: 1.08 | K13: 0.76 | L13: 1.52 | M13: 1.08 | N13: 0.76
B14: =B13+C6 -> 2018-03-17 | D14: 1 | F14: =F6 -> 0.38 | G14: =G6 -> 0.27 | H14: 0.19 | I14: =I13+F14 -> 1.9 | J14: 1.35 | K14: 0.95 | L14: 1.9 | M14: =J14-D14 -> 0.35 | N14: 0.95
B15: =B14+C6 -> 2018-03-31 | F15: =F6 -> 0.38 | G15: =G6 -> 0.27 | H15: 0.19 | I15: =I14+F15 -> 2.28 | J15: 1.62 | K15: 1.14 | L15: 2.28 | M15: =J15-D15 -> 1.62 | N15: 1.14
B16: =B15+C6 -> 2018-04-14 | E16: 0.5 | F16: =F6 -> 0.38 | G16: =G6 -> 0.27 | H16: 0.19 | I16: =I15+F16 -> 2.66 | J16: 1.89 | K16: 1.33 | L16: 2.66 | M16: 1.89 | N16: 0.83
B17: =B16+C6 -> 2018-04-28 | F17: =F6 -> 0.38 | G17: =G6 -> 0.27 | H17: 0.19 | I17: 3.04 | J17: 2.16 | K17: 1.52 | L17: 3.04 | M17: 2.16 | N17: 1.52
B18: =B17+C6 -> 2018-05-12 | C18: 3 | F18: =F6 -> 0.38 | G18: =G6 -> 0.27 | H18: 0.19 | I18: 3.42 | J18: 2.43 | K18: 1.71 | L18: 0.42 | M18: 2.43 | N18: 1.71
B19: =B18+C6 -> 2018-05-26 | F19: =F6 -> 0.38 | G19: =G6 -> 0.27 | H19: 0.19 | I19: 3.8 | J19: 2.7 | K19: 1.9 | L19: 3.8 | M19: 2.7 | N19: 1.9
B20: =B19+C6 -> 2018-06-09 | F20: =F6 -> 0.38 | G20: =G6 -> 0.27 | H20: 0.19 | I20: 4.18 | J20: 2.97 | K20: 2.09 | L20: 4.18 | M20: 2.97 | N20: 2.09
B21: =B20+C6 -> 2018-06-23 | F21: =F6 -> 0.38 | G21: =G6 -> 0.27 | H21: 0.19 | I21: 4.56 | J21: 3.24 | K21: 2.28 | L21: 4.56 | M21: 3.24 | N21: 2.28
B22: =B21+C6 -> 2018-07-07 | F22: =F6 -> 0.38 | G22: =G6 -> 0.27 | H22: 0.19 | I22: 4.94 | J22: 3.51 | K22: 2.47 | L22: 4.94 | M22: 3.51 | N22: 2.47
B23: =B22+C6 -> 2018-07-21 | F23: =F6 -> 0.38 | G23: =G6 -> 0.27 | H23: 0.19 | I23: 5.32 | J23: 3.78 | K23: 2.66 | L23: 5.32 | M23: 3.78 | N23: 2.66
B24: =B23+C6 -> 2018-08-04 | F24: =F6 -> 0.38 | G24: =G6 -> 0.27 | H24: 0.19 | I24: 5.7 | J24: 4.05 | K24: 2.85 | L24: 5.7 | M24: 4.05 | N24: 2.85
B25: =B24+C6 -> 2018-08-18 | F25: =F6 -> 0.38 | G25: =G6 -> 0.27 | H25: 0.19 | I25: 6.08 | J25: 4.32 | K25: 3.04 | L25: 6.08 | M25: 4.32 | N25: 3.04
B26: =B25+C6 -> 2018-09-01 | F26: =F6 -> 0.38 | G26: =G6 -> 0.27 | H26: 0.19 | I26: 6.46 | J26: 4.59 | K26: 3.23 | L26: 6.46 | M26: 4.59 | N26: 3.23
B27: =B26+C6 -> 2018-09-15 | F27: =F6 -> 0.38 | G27: =G6 -> 0.27 | H27: 0.19 | I27: 6.84 | J27: 4.86 | K27: 3.42 | L27: 6.84 | M27: 4.86 | N27: 3.42
B28: =B27+C6 -> 2018-09-29 | F28: =F6 -> 0.38 | G28: =G6 -> 0.27 | H28: 0.19 | I28: 7.22 | J28: 5.13 | K28: 3.61 | L28: 7.22 | M28: 5.13 | N28: 3.61
B29: =B28+C6 -> 2018-10-13 | F29: =F6 -> 0.38 | G29: =G6 -> 0.27 | H29: 0.19 | I29: 7.6 | J29: 5.4 | K29: 3.8 | L29: 7.6 | M29: 5.4 | N29: 3.8
B30: =B29+C6 -> 2018-10-27 | F30: =F6 -> 0.38 | G30: =G6 -> 0.27 | H30: 0.19 | I30: 7.98 | J30: 5.67 | K30: 3.99 | L30: 7.98 | M30: 5.67 | N30: 3.99
B31: =B30+C6 -> 2018-11-10 | F31: =F6 -> 0.38 | G31: =G6 -> 0.27 | H31: 0.19 | I31: 8.36 | J31: 5.94 | K31: 4.18 | L31: 8.36 | M31: 5.94 | N31: 4.18
B32: =B31+C6 -> 2018-11-24 | F32: =F6 -> 0.38 | G32: =G6 -> 0.27 | H32: 0.19 | I32: 8.74 | J32: 6.21 | K32: 4.37 | L32: 8.74 | M32: 6.21 | N32: 4.37
B33: =B32+C6 -> 2018-12-08 | F33: =F6 -> 0.38 | G33: =G6 -> 0.27 | H33: 0.19 | I33: 9.12 | J33: 6.48 | K33: 4.56 | L33: 9.12 | M33: 6.48 | N33: 4.56
B34: =B33+C6 -> 2018-12-22 | F34: =F6 -> 0.38 | G34: =G6 -> 0.27 | H34: 0.19 | I34: 9.5 | J34: 6.75 | K34: 4.75 | L34: 9.5 | M34: 6.75 | N34: 4.75
B35: =B34+C6 -> 2019-01-05 | F35: =F6 -> 0.38 | G35: =G6 -> 0.27 | H35: 0.19 | I35: 9.88 | J35: 7.02 | K35: 4.94 | L35: 9.88 | M35: 7.02 | N35: 4.94
B36: =B35+C6 -> 2019-01-19 | F36: =F6 -> 0.38 | G36: =G6 -> 0.27 | H36: 0.19 | I36: 10.26 | J36: 7.29 | K36: 5.13 | L36: 10.26 | M36: 7.29 | N36: 5.13
B37: =B36+C6 -> 2019-02-02 | F37: =F6 -> 0.38 | G37: =G6 -> 0.27 | H37: 0.19 | I37: 10.64 | J37: 7.56 | K37: 5.32 | L37: 10.64 | M37: 7.56 | N37: 5.32
B38: =B37+C6 -> 2019-02-16 | F38: =F6 -> 0.38 | G38: =G6 -> 0.27 | H38: 0.19 | I38: 11.02 | J38: 7.83 | K38: 5.51 | L38: 11.02 | M38: 7.83 | N38: 5.51
B39: =B38+C6 -> 2019-03-02 | F39: =F6 -> 0.38 | G39: =G6 -> 0.27 | H39: 0.19 | I39: 11.4 | J39: 8.1 | K39: 5.7 | L39: =I39-C39 -> 11.4 | M39: 8.1 | N39: 5.7
B40: =B39+C6 -> 2019-03-16 | F40: =F6 -> 0.38 | G40: =G6 -> 0.27 | H40: 0.19 | I40: 11.78 | J40: 8.37 | K40: 5.89 | L40: 11.78 | M40: 8.37 | N40: 5.89
B41: =B40+C6 -> 2019-03-30 | F41: =F6 -> 0.38 | G41: =G6 -> 0.27 | H41: 0.19 | I41: 12.16 | J41: 8.64 | K41: 6.08 | L41: =I41-C41 -> 12.16 | M41: =J41-D41 -> 8.64 | N41: =K41-E41 -> 6.08
B42: =B41+C6 -> 2019-04-13 | F42: =F6 -> 0.38 | G42: =G6 -> 0.27 | H42: 0.19 | I42: 12.54 | J42: 8.91 | K42: 6.27 | L42: 12.54 | M42: 8.91 | N42: 6.27
B43: =B42+C6 -> 2019-04-27 | F43: =F6 -> 0.38 | G43: =G6 -> 0.27 | H43: 0.19 | I43: 12.92 | J43: 9.18 | K43: 6.46 | L43: 12.92 | M43: 9.18 | N43: 6.46
B44: =B43+C6 -> 2019-05-11 | F44: =F6 -> 0.38 | G44: =G6 -> 0.27 | H44: 0.19 | I44: 13.3 | J44: 9.45 | K44: 6.65 | L44: 13.3 | M44: 9.45 | N44: 6.65
B45: =B44+C6 -> 2019-05-25 | F45: =F6 -> 0.38 | G45: =G6 -> 0.27 | H45: 0.19 | I45: 13.68 | J45: 9.72 | K45: 6.84 | L45: 13.68 | M45: 9.72 | N45: 6.84
B46: =B45+C6 -> 2019-06-08 | F46: =F6 -> 0.38 | G46: =G6 -> 0.27 | H46: 0.19 | I46: 14.06 | J46: 9.99 | K46: 7.03 | L46: 14.06 | M46: 9.99 | N46: 7.03
B47: =B46+C6 -> 2019-06-22 | F47: =F6 -> 0.38 | G47: =G6 -> 0.27 | H47: 0.19 | I47: 14.44 | J47: 10.26 | K47: 7.22 | L47: 14.44 | M47: 10.26 | N47: 7.22
B48: =B47+C6 -> 2019-07-06 | F48: =F6 -> 0.38 | G48: =G6 -> 0.27 | H48: 0.19 | I48: 14.82 | J48: 10.53 | K48: 7.41 | L48: 14.82 | M48: 10.53 | N48: 7.41
B49: =B48+C6 -> 2019-07-20 | F49: =F6 -> 0.38 | G49: =G6 -> 0.27 | H49: 0.19 | I49: 15.2 | J49: 10.8 | K49: 7.6 | L49: 15.2 | M49: 10.8 | N49: 7.6
B50: =B49+C6 -> 2019-08-03 | F50: =F6 -> 0.38 | G50: =G6 -> 0.27 | H50: 0.19 | I50: 15.58 | J50: 11.07 | K50: 7.79 | L50: 15.58 | M50: 11.07 | N50: 7.79
B51: =B50+C6 -> 2019-08-17 | F51: =F6 -> 0.38 | G51: =G6 -> 0.27 | H51: 0.19 | I51: 15.96 | J51: 11.34 | K51: 7.98 | L51: 15.96 | M51: 11.34 | N51: 7.98
B52: =B51+C6 -> 2019-08-31 | F52: =F6 -> 0.38 | G52: =G6 -> 0.27 | H52: 0.19 | I52: 16.34 | J52: 11.61 | K52: 8.17 | L52: 16.34 | M52: 11.61 | N52: 8.17
B53: =B52+C6 -> 2019-09-14 | F53: =F6 -> 0.38 | G53: =G6 -> 0.27 | H53: 0.19 | I53: 16.72 | J53: 11.88 | K53: 8.36 | L53: 16.72 | M53: 11.88 | N53: 8.36
B54: =B53+C6 -> 2019-09-28 | F54: =F6 -> 0.38 | G54: =G6 -> 0.27 | H54: 0.19 | I54: 17.1 | J54: 12.15 | K54: 8.55 | L54: 17.1 | M54: 12.15 | N54: 8.55
B55: =B54+C6 -> 2019-10-12 | F55: =F6 -> 0.38 | G55: =G6 -> 0.27 | H55: 0.19 | I55: 17.48 | J55: 12.42 | K55: 8.74 | L55: 17.48 | M55: 12.42 | N55: 8.74
B56: =B55+C6 -> 2019-10-26 | F56: =F6 -> 0.38 | G56: =G6 -> 0.27 | H56: 0.19 | I56: 17.86 | J56: 12.69 | K56: 8.93 | L56: 17.86 | M56: 12.69 | N56: 8.93
B57: =B56+C6 -> 2019-11-09 | F57: =F6 -> 0.38 | G57: =G6 -> 0.27 | H57: 0.19 | I57: 18.24 | J57: 12.96 | K57: 9.12 | L57: 18.24 | M57: 12.96 | N57: 9.12
B58: =B57+C6 -> 2019-11-23 | F58: =F6 -> 0.38 | G58: =G6 -> 0.27 | H58: 0.19 | I58: 18.62 | J58: 13.23 | K58: 9.31 | L58: 18.62 | M58: 13.23 | N58: 9.31
B59: =B58+C6 -> 2019-12-07 | F59: =F6 -> 0.38 | G59: =G6 -> 0.27 | H59: 0.19 | I59: 19 | J59: 13.5 | K59: 9.5 | L59: 19 | M59: 13.5 | N59: 9.5
B60: =B59+C6 -> 2019-12-21 | F60: =F6 -> 0.38 | G60: =G6 -> 0.27 | H60: 0.19 | I60: 19.38 | J60: 13.77 | K60: 9.69 | L60: 19.38 | M60: 13.77 | N60: 9.69
B61: =B60+C6 -> 2020-01-04 | F61: =F6 -> 0.38 | G61: =G6 -> 0.27 | H61: 0.19 | I61: 19.76 | J61: 14.04 | K61: 9.88 | L61: 19.76 | M61: 14.04 | N61: 9.88
B63: CLICK HERE TO CREATE EMPLOYEE VACATION TRACKER TEMPLATES IN SMARTSHEET
